Cogmind - Beta 16 @@@ ROGUE MODE // 2025.11.02 @ 10:46:15 Player: rt Result: Self-destructed Performance ------------- Evolutions (4) 2000 Regions Visited (10) 2000 Robots Destroyed (27) 135 Value Destroyed (1044) 1044 Prototype IDs (28) 560 Alien Tech Used (0) 0 Bonus (1015) 1015 TOTAL SCORE: 6754 Bonus ------- High Alert Combat Kills 15 Entered Garrisons 200 Entered DSFs 500 Aligned with FarCom 300 Cogmind --------- Core Integrity 531/850 Matter 19/300 Energy 500/500 System Corruption 17% Temperature Hot (285) Movement Core (400) Ox7 Location -6/Extension Parts ------- > --- POWER (3) -------- F-cell Engine > --- PROPULSION (3) --- (None) > --- UTILITY (6) ------ Medium Storage Unit Improved Signal Interpreter Seismic Detector > --- WEAPON (3) ------- (None) > --- INVENTORY (10) --- Aluminum Leg Aluminum Leg Aluminum Leg Flexi-carbon Leg Flexi-carbon Leg Medium Storage Unit Signal Interpreter Proton Cannon Improved Proton Missile Launcher Peak State ------------ > --- POWER ------------ Light Ion Engine Light Nuclear Core F-cell Engine > --- PROPULSION ------- Aluminum Leg Carbon-fiber Leg Carbon-fiber Leg > --- UTILITY ---------- Medium Storage Unit Compact Battery Medium Matter Pod Improved Sensor Array Experimental Sensor Array Improved Medium Armor Plating > --- WEAPON ----------- Field Laser Latent Energy Streamer Gauss Rifle > --- INVENTORY -------- Aluminum Leg Aluminum Leg Medium Storage Unit Signal Interpreter Improved Signal Interpreter Seismic Detector Field Laser Proton Cannon Improved Proton Missile Launcher [Rating: 57] Favorites ----------- Power Light Ion Engine Engine Light Ion Engine Power Core Light Nuclear Core Propulsion Aluminum Leg Leg Aluminum Leg Utility Medium Storage Unit Device Experimental Sensor Array Storage Medium Storage Unit Processor Terrain Scan Processor Protection Improved Medium Armor Plating Weapon Rocket Launcher Energy Gun Field Laser Energy Cannon Latent Energy Streamer Ballistic Gun Gauss Rifle Launcher Rocket Launcher Special Weapon Mining Laser Build | -11 -10 -10 -10 -9 -8 -8 -7 -7 -6 -6 ------- Run | Yrd Mat Min Exi Min Mat Gar Fac DSF Fac Ext Slots Evolved 8 | . . . . . 4 . 2 . 2 . Power 2 | . . . . . 1 . 1 . . . Propulsion 1 | . . . . . . . 1 . . . Utility 4 | . . . . . 2 . . . 2 . Weapon 1 | . . . . . 1 . . . . . Parts Attached 38 | 8 1 5 2 . 11 . 1 2 7 1 Power 7 | 1 . 1 1 . 3 . . . 1 . Engine 6 | 1 . 1 1 . 2 . . . 1 . Core 1 | . . . . . 1 . . . . . Reactor . | . . . . . . . . . . . Propulsion 7 | 2 . 1 . . 2 . . . 1 1 Treads . | . . . . . . . . . . . Leg 7 | 2 . 1 . . 2 . . . 1 1 Wheel . | . . . . . . . . . . . Hover . | . . . . . . . . . . . Flight . | . . . . . . . . . . . Utility 11 | 2 1 1 . . 2 . 1 . 4 . Device 4 | 1 . . . . 1 . . . 2 . Storage 4 | 1 1 1 . . . . . . 1 . Processor 2 | . . . . . 1 . . . 1 . Hackware . | . . . . . . . . . . . Protection 1 | . . . . . . . 1 . . . Artifact . | . . . . . . . . . . . Weapon 13 | 3 . 2 1 . 4 . . 2 1 . Energy Gun 4 | . . 1 . . 1 . . 2 . . Energy Cannon 2 | . . . 1 . 1 . . . . . Ballistic Gun 4 | 2 . . . . 2 . . . . . Ballistic Cannon . | . . . . . . . . . . . Launcher 2 | . . 1 . . . . . . 1 . Special Weapon 1 | 1 . . . . . . . . . . Impact Weapon . | . . . . . . . . . . . Slashing Weapon . | . . . . . . . . . . . Piercing Weapon . | . . . . . . . . . . . Special Melee Weapon . | . . . . . . . . . . . Unidentified Prototypes 2 | . . . . . 1 . . . 1 . Parts Lost 19 | . . 3 . 1 2 . . 1 5 7 Power 5 | . . 1 . 1 1 . . . 1 1 Propulsion 3 | . . . . . . . . . 1 2 Utility 5 | . . 1 . . . . . . 3 1 Weapon 6 | . . 1 . . 1 . . 1 . 3 Highest Loss Streak 7 | . . 3 . 1 1 . . 1 5 7 To Critical Strikes . | . . . . . . . . . . . Average Backups 8 | 4 8 9 10 10 7 10 9 10 8 8 Power 1 | . 2 2 3 2 . . . . . . Propulsion 1 | 2 2 1 1 1 2 3 2 2 2 3 Utility 3 | . 1 3 3 4 4 5 5 5 3 2 Weapon 2 | 1 2 2 2 2 1 2 2 2 2 2 Tool/Special . | . . . . . . . . . . . Unused Backups 14 | . 3 2 2 . . . 1 . . 6 Power 1 | . . 1 . . . . . . . . Propulsion 6 | . 3 . . . . . . . . 3 Utility 5 | . . . 2 . . . 1 . . 2 Weapon 2 | . . 1 . . . . . . . 1 Tool/Special . | . . . . . . . . . . . Average Slot Usage (%) 95 | . 100 98 100 97 98 100 89 88 92 82 Engine 11 | . 14 13 14 11 16 9 7 7 9 6 Core 2 | . . . . . 1 9 7 7 6 5 Leg 22 | . 28 28 28 28 17 18 23 23 19 18 Device 5 | . 14 . . . 8 9 7 7 10 6 Storage 20 | . 14 26 28 28 18 18 15 15 18 12 Processor 3 | . . . . . 8 9 4 . . 6 Protection 1 | . . . . . . . 2 7 6 5 Energy Gun 5 | . . 12 9 . . 7 7 13 6 6 Energy Cannon 5 | . . . 4 11 5 10 7 5 5 5 Ballistic Gun 6 | . 14 7 . 2 12 9 4 . 5 5 Launcher 5 | . . 6 14 14 8 . . . . . Peak Build Rating 57 | 9 10 10 18 18 34 41 37 37 57 51 Average Rating 27 | 5 9 8 11 16 28 35 34 35 51 47 On Entrance 21 | . 9 10 9 18 9 34 34 33 34 46 Avg Prop Armor Cover (%) . | . . . . . . . . . . . Naked Turns . | . . . . . . . . . . . Heaviest Build 59 | 12 17 20 29 29 35 41 41 40 59 53 Greatest Support 47 | 20 20 20 20 20 30 30 40 40 40 47 Greatest Overweight (x) 3 | . . . 1 1 3 1 1 . 2 1 Average Overweight (x) . | . . . . . . 1 . . 1 1 Largest Inventory Capacity 10 | 8 10 10 10 10 10 10 10 10 10 10 Average Capacity 9 | 7 8 10 10 10 10 10 10 10 10 10 Most Carried 10 | 8 10 10 10 10 10 10 10 10 10 10 Average Carried 8 | 4 8 9 9 9 7 10 9 9 8 8 Final Capacity 10 | 8 10 10 10 10 10 10 10 10 10 10 Final Carried 10 | 7 10 10 10 10 10 10 10 10 7 9 Class Distribution -------------------- 43% | Mutant 40% | Scavenger-Skirmisher 16% | Skirmisher Dominant Class ---------------- Mutant | -10/Materials Mutant | -10/Mines Mutant | -10/Exiles Mutant | -9/Mines Scavenger-Skirmisher | -8/Materials Scavenger-Skirmisher | -8/Garrison Scavenger-Skirmisher | -7/Factory Scavenger-Skirmisher | -7/DSF Scavenger-Skirmisher | -6/Factory Skirmisher | -6/Extension Resources | -11 -10 -10 -10 -9 -8 -8 -7 -7 -6 -6 ----------- Run | Yrd Mat Min Exi Min Mat Gar Fac DSF Fac Ext Matter Collected 692 | 224 50 122 . 98 145 53 . . . . Remotely . | . . . . . . . . . . . Salvage Created 685 | 10 23 55 . 118 319 97 . . 63 . Parts 59 | 4 1 9 . 9 27 4 . . 5 . Haulers Intercepted . | . . . . . . . . . . . Recyclers Shooed . | . . . . . . . . . . . Parts Field Recycled . | . . . . . . . . . . . Retrieved Matter . | . . . . . . . . . . . Parts Self-Destructed . | . . . . . . . . . . . Prevented . | . . . . . . . . . . . Parts Restored . | . . . . . . . . . . . Kills | -11 -10 -10 -10 -9 -8 -8 -7 -7 -6 -6 ------- Run | Yrd Mat Min Exi Min Mat Gar Fac DSF Fac Ext Combat Hostiles Destroyed 21 | . . 5 . 6 7 2 . . 1 . Guns 8 | . . 5 . 1 1 1 . . . . Cannons 1 | . . . . . 1 . . . . . AOE 12 | . . . . 5 5 1 . . 1 . Classes Destroyed 9 | 1 1 1 . 2 3 . . . 1 . Builder 3 | . . . . . 2 . . . 1 . Tunneler 1 | 1 . . . . . . . . . . Recycler 1 | . . . . 1 . . . . . . Watcher 1 | . 1 . . . . . . . . . Swarmer 9 | . . 5 . 4 . . . . . . Grunt 4 | . . . . 2 . 2 . . . . Sentry 3 | . . . . . 3 . . . . . Hunter 4 | . . . . . 4 . . . . . Programmer 1 | . . . . . . . . . 1 . Best Kill Streak 7 | 1 1 2 . 7 5 2 . . 1 . Combat Bots Only 6 | . . 2 . 6 4 2 . . 1 . Max Kills in Single Turn 2 | 1 1 1 . 2 2 1 . . 1 . Gunslinging . | . . . . . . . . . . . Exploded 1 | . . . . 1 1 1 . . 1 . Melee . | . . . . . . . . . . . Uniques/NPCs Destroyed . | . . . . . . . . . . . Combat | -11 -10 -10 -10 -9 -8 -8 -7 -7 -6 -6 -------- Run | Yrd Mat Min Exi Min Mat Gar Fac DSF Fac Ext Hostile Shots Fired 196 | . . 61 . 29 52 3 . 3 18 30 Missed 49 | . . 14 . 12 9 1 . 2 5 6 Hits 147 | . . 47 . 17 43 2 . 1 13 24 Melee 24 | . . . . . . . . . . 24 Projectile 123 | . . 47 . 17 43 2 . 1 13 . Critical Strikes 11 | . . 1 . 1 3 . . . 2 4 Damage Taken 2531 | . . 391 . 274 518 31 . 56 381 880 Core 569 | . . 95 . 90 65 . . . 50 269 Absorbed by Shields . | . . . . . . . . . . . Regen/Repaired (Parts) 214 | . . . . . 214 . . . . . Core Remaining (%) 78 | 100 . . . 26 . 88 . 100 . . Volleys Fired 60 | 1 2 22 . 8 13 2 . . 5 7 Largest 3 | 2 1 2 . 2 3 3 . . 3 2 Hottest 163 | 40 20 120 . 53 136 163 . . 151 91 Shots Fired 123 | 2 2 37 . 16 35 7 . . 14 10 Gun 86 | 2 2 34 . 8 19 3 . . 9 9 Cannon 16 | . . . . . 6 4 . . 5 1 Launcher 18 | . . . . 8 10 . . . . . Special 3 | . . 3 . . . . . . . . Kinetic 62 | 2 2 22 . 8 19 2 . . 5 2 Thermal 36 | . . 15 . . 6 4 . . 4 7 Explosive 18 | . . . . 8 10 . . . . . Electromagnetic 7 | . . . . . . 1 . . 5 1 Robot Hit Streak 10 | 1 1 4 . 3 8 10 . . 2 1 Robot Miss Streak 5 | . 1 5 . 2 2 . . . 3 2 Penetration Max 1 | . . . . . . . . . . 1 Secondary Targets . | . . . . . . . . . . . Shots Hit Robots 59 | 1 1 15 . 7 24 2 . . 5 4 Core Hits 45 | 1 1 5 . 11 19 3 . . 4 1 Critical Kills . | . . . . . . . . . . . Critical Parts Destroyed 1 | . . . . . . . . . 1 . Critical Strikes 1 | . . . . . . . . . 1 . Destroy 1 | . . . . . . . . . 1 . Melee Attacks . | . . . . . . . . . . . Impact . | . . . . . . . . . . . Slashing . | . . . . . . . . . . . Piercing . | . . . . . . . . . . . Sneak Attacks . | . . . . . . . . . . . Combat Hostiles . | . . . . . . . . . . . Follow-up Attacks . | . . . . . . . . . . . Damage Inflicted 2114 | 12 15 195 . 527 683 186 . . 312 184 Guns 609 | 12 15 171 . 25 123 15 . . 64 184 Cannons 128 | . . . . . 125 . . . 3 . Explosions 1353 | . . . . 502 435 171 . . 245 . Melee . | . . . . . . . . . . . Ramming . | . . . . . . . . . . . Kinetic 433 | 12 15 151 . 25 123 . . . 44 63 Thermal 400 | . . 44 . . 125 15 . . 95 121 Explosive 937 | . . . . 502 435 . . . . . Electromagnetic 344 | . . . . . . 171 . . 173 . Impact . | . . . . . . . . . . . Slashing . | . . . . . . . . . . . Piercing . | . . . . . . . . . . . Highest Corruption 17 | . . . . . . 3 . . 15 17 Average Corruption 11 | . . . . . . 3 . . 12 15 Corruption Purged . | . . . . . . . . . . . Corruption Blocked . | . . . . . . . . . . . Effects 24 | . . . . . . 3 . . 7 14 Message Errors 7 | . . . . . . . . . 2 5 Matter Fused 3 | . . . . . . . . . 1 2 Heat Flow Errors 4 | . . . . . . 2 . . 1 1 Data Loss (minor) 2 | . . . . . . . . . 1 1 Data Loss (major) 4 | . . . . . . . . . 1 3 Misfires 2 | . . . . . . 1 . . . 1 Misdirections 1 | . . . . . . . . . . 1 Weapon Failures 1 | . . . . . . . . . 1 . Overload Shots . | . . . . . . . . . . . Overflow Damage 74 | . . . . 18 22 . . . 34 . Projectiles . | . . . . . . . . . . . Explosions 74 | . . . . 18 22 . . . 34 . Melee . | . . . . . . . . . . . Knockbacks . | . . . . . . . . . . . Impact . | . . . . . . . . . . . Kinetic . | . . . . . . . . . . . Secondary . | . . . . . . . . . . . Self-Inflicted Damage 333 | . . . . 90 59 . . . 184 . Shots 9 | . . . . 4 3 . . . 2 . Rammed . | . . . . . . . . . . . Targets Rammed . | . . . . . . . . . . . Kicked . | . . . . . . . . . . . Crushed . | . . . . . . . . . . . Highest Temperature 320 | . . 60 . 39 156 281 . . 320 307 Average Temperature 93 | . . 31 . 12 50 125 . . 154 153 Received Heat Transfer 195 | . . . . 78 99 18 . . . . Siege Activations . | . . . . . . . . . . . Martial Activations . | . . . . . . . . . . . Shielding Activations . | . . . . . . . . . . . Robots Disrupted . | . . . . . . . . . . . Combat Hostiles . | . . . . . . . . . . . Robots Corrupted . | . . . . . . . . . . . Combat Hostiles . | . . . . . . . . . . . Parts Fried 3 | . . . . . . 2 . . 1 . Impact Corruptions . | . . . . . . . . . . . Robots Melted . | . . . . . . . . . . . Combat Hostiles . | . . . . . . . . . . . Parts Melted . | . . . . . . . . . . . Heat Transferred 668 | . . 100 . . 185 37 . . 87 259 Parts Sabotaged . | . . . . . . . . . . . Parts Stolen . | . . . . . . . . . . . Parts Stripped . | . . . . . . . . . . . Power Chain Reactions 1 | . . . . . . . . . 1 . Latent Energy Used 1050 | . . . . . . 159 . . 775 116 LE Corruption 18 | . . . . . . 3 . . 13 2 Alert | -11 -10 -10 -10 -9 -8 -8 -7 -7 -6 -6 ------- Run | Yrd Mat Min Exi Min Mat Gar Fac DSF Fac Ext Maximum Alert Level 2 | . . . . . . . . . 2 1 Low Security (%) 92 | 100 100 100 . 100 100 100 100 100 74 69 Level 1 3 | . . . . . . . . . . 30 Level 2 4 | . . . . . . . . . 24 . Level 3 . | . . . . . . . . . . . Level 4 . | . . . . . . . . . . . Level 5 . | . . . . . . . . . . . High Security . | . . . . . . . . . . . Max Security . | . . . . . . . . . . . Peak Influence 542 | 5 7 50 . 176 143 141 73 20 542 249 Initial 249 | . . . . . 60 82 73 15 10 249 Average 65 | . 1 10 . 23 27 115 51 13 123 178 Influence Increases 1367 | 5 14 120 . 196 301 59 19 15 616 22 Destroy 0b10 Robot/C 420 | . . 100 . 120 140 40 . . 20 . Destroy 0b10 Robot/NC 30 | 5 5 . . 5 10 . . . 5 . Destroy Leader 122 | . 2 20 . 20 70 . . . 10 . Successful Hack 46 | . 7 . . . 6 14 19 . . . Disable Machine 330 | . . . . . 15 . . . 300 15 Anti-Garrison Action 150 | . . . . . . . . . 150 . Destroy Structure 254 | . . . . 51 60 5 . . 131 7 Lose Combat Pursuer 15 | . . . . . . . . 15 . . Influence Decreases 1326 | 5 14 120 . 40 330 45 138 17 126 491 Entered New Map 487 | . . . . . 96 45 68 7 10 261 Time Decay 679 | 5 14 110 . 30 224 . 70 . 66 160 Lost Part 160 | . . 10 . 10 10 . . 10 50 70 Squads Dispatched 11 | . . . . . 6 . . . 4 1 Investigation 2 | . . . . . 1 . . . . 1 Extermination 1 | . . . . . . . . . 1 . Reinforcement 3 | . . . . . 2 . . . 1 . Assault 2 | . . . . . . . . . 2 . Garrison 3 | . . . . . 3 . . . . . Intercept . | . . . . . . . . . . . Searches Triggered . | . . . . . . . . . . . Construction Impeded 1 | . . . . . 1 . . . . . Haulers Reinforced . | . . . . . . . . . . . Active Scanning Responses . | . . . . . . . . . . . Cargo Convoy Interrupts . | . . . . . . . . . . . Stealth | -11 -10 -10 -10 -9 -8 -8 -7 -7 -6 -6 --------- Run | Yrd Mat Min Exi Min Mat Gar Fac DSF Fac Ext Distress Signals 2 | . . . . . 2 . . . . . Communications Jammed . | . . . . . . . . . . . Distress Signals . | . . . . . . . . . . . Times Spotted 30 | . 2 6 . 5 11 1 . . 2 3 Peak Tracking Total 4 | . 2 3 . 3 4 2 . 1 1 3 Tactical Retreats 1 | . . . . . . . . 1 . . Traps | -11 -10 -10 -10 -9 -8 -8 -7 -7 -6 -6 ------- Run | Yrd Mat Min Exi Min Mat Gar Fac DSF Fac Ext Traps Triggered 2 | . . . . . . 1 . . . 1 Indirectly . | . . . . . . . . . . . Trap Hack Attempts . | . . . . . . . . . . . Triggered . | . . . . . . . . . . . Disarmed . | . . . . . . . . . . . Reprogrammed . | . . . . . . . . . . . Reused . | . . . . . . . . . . . Traps Extracted . | . . . . . . . . . . . Installed . | . . . . . . . . . . . Triggered . | . . . . . . . . . . . Machines | -11 -10 -10 -10 -9 -8 -8 -7 -7 -6 -6 ---------- Run | Yrd Mat Min Exi Min Mat Gar Fac DSF Fac Ext Machines Disabled 23 | . . . . . 1 . . . 21 1 Max in Single Turn 11 | . . . . . 1 . . . 11 1 Garrison Access 1 | . . . . . . . . . 1 . Machines Repaired . | . . . . . . . . . . . Machines Dismantled . | . . . . . . . . . . . Machines Sabotaged . | . . . . . . . . . . . Overloaded Fab Kills . | . . . . . . . . . . . Hacking | -11 -10 -10 -10 -9 -8 -8 -7 -7 -6 -6 --------- Run | Yrd Mat Min Exi Min Mat Gar Fac DSF Fac Ext Machines Accessed 13 | . 2 . 5 . 2 1 2 . 1 . Terminals 6 | . 2 . . . . 1 2 . 1 . Fabricators . | . . . . . . . . . . . Repair Stations 1 | . . . . . 1 . . . . . Recycling Units . | . . . . . . . . . . . Scanalyzers . | . . . . . . . . . . . Garrison Access 1 | . . . . . 1 . . . . . Total Hacks 68 | . 4 . 50 . 8 1 2 . 3 . Successful 63 | . 2 . 50 . 7 1 2 . 1 . Failed 5 | . 2 . . . 1 . . . 2 . Catastrophic . | . . . . . . . . . . . Database Lockouts . | . . . . . . . . . . . Manual 9 | . 1 . 7 . . . 1 . . . Terminals 10 | . 4 . . . . 1 2 . 3 . Fabricators . | . . . . . . . . . . . Repair Stations 7 | . . . . . 7 . . . . . Recycling Units . | . . . . . . . . . . . Scanalyzers . | . . . . . . . . . . . Garrison Access 1 | . . . . . 1 . . . . . Terminal Hacks 56 | . 2 . 50 . . 1 2 . 1 . Record 51 | . 2 . 49 . . . . . . . Prototype ID Bank 1 | . . . . . . . 1 . . . Open Door 1 | . . . . . . . . . 1 . Open DSF 1 | . . . . . . . 1 . . . Emergency Access Points 1 | . . . . . . 1 . . . . Proto ID Catalog 1 | . . . 1 . . . . . . . Fabricator Hacks . | . . . . . . . . . . . Repair Station Hacks 6 | . . . . . 6 . . . . . Scan Component 3 | . . . . . 3 . . . . . Repair 3 | . . . . . 3 . . . . . Recycling Unit Hacks . | . . . . . . . . . . . Scanalyzer . | . . . . . . . . . . . Garrison Access Hacks 1 | . . . . . 1 . . . . . Unlock Access 1 | . . . . . 1 . . . . . Unauthorized Hacks . | . . . . . . . . . . . Terminals . | . . . . . . . . . . . Fabricators . | . . . . . . . . . . . Repair Stations . | . . . . . . . . . . . Recycling Units . | . . . . . . . . . . . Scanalyzers . | . . . . . . . . . . . Garrison Access . | . . . . . . . . . . . Data Cores Recovered . | . . . . . . . . . . . Used . | . . . . . . . . . . . Hacking Detections 5 | . 2 . . . 1 . 1 . 1 . Full Trace Events 1 | . . . . . 1 . . . . . Feedback Events . | . . . . . . . . . . . Feedback Blocked . | . . . . . . . . . . . Robot Schematics Acquired . | . . . . . . . . . . . Robots Built . | . . . . . . . . . . . Authchips . | . . . . . . . . . . . Time . | . . . . . . . . . . . Total Robot Build Rating . | . . . . . . . . . . . Part Schematics Acquired . | . . . . . . . . . . . Parts Built . | . . . . . . . . . . . Authchips . | . . . . . . . . . . . Time . | . . . . . . . . . . . Total Part Build Rating . | . . . . . . . . . . . Part Studies Acquired . | . . . . . . . . . . . Parts Repaired 3 | . . . . . 3 . . . . . Time 96 | . . . . . 96 . . . . . Parts Recycled . | . . . . . . . . . . . Recycled Matter . | . . . . . . . . . . . Retrieved Matter . | . . . . . . . . . . . Retrieved Components . | . . . . . . . . . . . Parts Scanalyzed . | . . . . . . . . . . . Part Schematics Acquired . | . . . . . . . . . . . Parts Damaged . | . . . . . . . . . . . Bothacking | -11 -10 -10 -10 -9 -8 -8 -7 -7 -6 -6 ------------ Run | Yrd Mat Min Exi Min Mat Gar Fac DSF Fac Ext Used RIF Installer . | . . . . . . . . . . . Robots Hacked . | . . . . . . . . . . . Non-combat . | . . . . . . . . . . . Combat . | . . . . . . . . . . . Robot Hacks Applied . | . . . . . . . . . . . Relay Couplers Released 2 | . . . . . . . . . 2 . Machine Destruction 2 | . . . . . . . . . 2 . Fabnet Peak Effective % . | . . . . . . . . . . . Robots Rewired . | . . . . . . . . . . . Allies Hacked . | . . . . . . . . . . . Hacks Repelled . | . . . . . . . . . . . Allies | -11 -10 -10 -10 -9 -8 -8 -7 -7 -6 -6 -------- Run | Yrd Mat Min Exi Min Mat Gar Fac DSF Fac Ext Total Allies . | . . . . . . . . . . . Largest Group . | . . . . . . . . . . . Highest-Rated Group . | . . . . . . . . . . . Highest-Rated Ally . | . . . . . . . . . . . Total Orders . | . . . . . . . . . . . Ally Attacks . | . . . . . . . . . . . Total Damage . | . . . . . . . . . . . Kills . | . . . . . . . . . . . Allies Corrupted . | . . . . . . . . . . . Allies Melted . | . . . . . . . . . . . Intel | -11 -10 -10 -10 -9 -8 -8 -7 -7 -6 -6 ------- Run | Yrd Mat Min Exi Min Mat Gar Fac DSF Fac Ext Active Infowar (turns) 2329 | 17 144 13 . . 705 377 145 106 494 328 Sensors 1784 | . . . . . 705 377 145 106 451 . Terrain 174 | 17 144 13 . . . . . . . . Seismic 371 | . . . . . . . . . 43 328 Robot Analysis Total . | . . . . . . . . . . . Derelict Logs Recovered 3 | . . 2 . 1 . . . . . . Drone Launches . | . . . . . . . . . . . Drone Recoveries . | . . . . . . . . . . . Exploration | -11 -10 -10 -10 -9 -8 -8 -7 -7 -6 -6 ------------- Run | Yrd Mat Min Exi Min Mat Gar Fac DSF Fac Ext Turns Passed 3861 | 119 144 428 600 352 708 377 145 106 554 328 Spaces Moved 2125 | 76 110 262 429 170 283 188 115 70 262 160 Core 8 | 8 . . . . . . . . . . Treads . | . . . . . . . . . . . Legs 2117 | 68 110 262 429 170 283 188 115 70 262 160 Wheels . | . . . . . . . . . . . Hover . | . . . . . . . . . . . Flight . | . . . . . . . . . . . Fastest Speed 50 | 50 120 120 120 120 120 190 120 120 120 185 Average Speed 155 | 112 120 120 136 175 174 190 123 120 193 185 Slowest Speed 330 | 120 120 120 190 190 330 190 190 120 260 186 Overloaded Moves . | . . . . . . . . . . . Propulsion Burnouts . | . . . . . . . . . . . Robots Hopped . | . . . . . . . . . . . Potential Cave-ins . | . . . . . . . . . . . Cave-ins Triggered . | . . . . . . . . . . . Exploration Rate (%) 31 | 4 25 69 73 44 19 29 4 53 7 17 Regions Visited 10 Branch Regions 4 Pre-discovered Areas 3 | . . 1 1 1 . . . . . . Known Exits Taken 3 | . . . . . 1 . 1 . 1 . Unknown Exits Taken 5 | 1 1 1 1 1 . . . . . . Scrap Searched 2 | . . 1 . 1 . . . . . . Spaces Dug . | . . . . . . . . . . . Terrain Destroyed 311 | . . . . 84 67 . . . 153 7 Melee . | . . . . . . . . . . . Projectile 1 | . . . . . 1 . . . . . AOE 310 | . . . . 84 66 . . . 153 7 Terrain Rammed . | . . . . . . . . . . . Walls Destroyed . | . . . . . . . . . . . Machines Disabled . | . . . . . . . . . . . Actions | -11 -10 -10 -10 -9 -8 -8 -7 -7 -6 -6 --------- Run | Yrd Mat Min Exi Min Mat Gar Fac DSF Fac Ext Total 2580 | 107 122 333 445 210 469 204 119 93 297 181 Wait 279 | 9 . 36 10 28 152 . . 19 17 8 Move 2115 | 75 109 261 428 169 282 187 114 69 261 160 Hop . | . . . . . . . . . . . Pick Up 48 | 14 6 6 2 2 8 1 1 1 4 3 Fast Attach 3 | . . . . . 2 . . 1 . . Attach 26 | 7 . 3 . . 7 . 1 . 7 1 Detach 1 | . . . . . . . 1 . . . Swap 20 | 1 1 2 2 1 5 2 1 1 3 1 Drop 15 | . 4 3 2 2 . 1 1 2 . . Fire 60 | 1 2 22 . 8 13 2 . . 5 7 Melee . | . . . . . . . . . . . Ram . | . . . . . . . . . . . Kick . | . . . . . . . . . . . Crush . | . . . . . . . . . . . Escape Stasis 5 | . . . . . . 5 . . . . Rewire 8 | . . . 1 . . 6 . . . 1 Trap . | . . . . . . . . . . . Miscellaneous . | . . . . . . . . . . . Route ------- -11/Scrapyard -10/Materials -10/Mines (discovered 2 exits: [*Mat] / *Exi) -10/Exiles -9/Mines -8/Materials -8/Garrison -7/Factory -7/DSF -6/Factory -6/Extension History --------- Turn | Location | Event 7 | -11/Scrapyard | Discovered new exit (range 16) 120 | -11/Scrapyard | Entered Materials 221 | -10/Materials | Discovered new exit (range 16) 264 | -10/Materials | Entered Mines 277 | -10/Mines | Met a Derelict bent on vengeance 324 | -10/Mines | Lost 3 parts (1p1u1w) 328 | -10/Mines | Build established: Mutant 497 | -10/Mines | Received a Rocket Launcher from a helpful Derelict 656 | -10/Mines | Discovered new exit (range 10) 684 | -10/Mines | Deemed a non-threat by the Exiles lab entrance 685 | -10/Mines | Discovered new exit (range 5) 692 | -10/Mines | Entered Exiles 727 | -10/Exiles | Met 8R-AWN 749 | -10/Exiles | Met EX-HEX 820 | -10/Exiles | Met EX-DEC 846 | -10/Exiles | Learned location of Zion (-7) 904 | -10/Exiles | Discovered new exit (range 14) 976 | -10/Exiles | Met EX-BIN 1000 | -10/Exiles | Aligned with FarCom system 1001 | -10/Exiles | Given EX-Vault access code 1075 | -10/Exiles | Opened EX-Vault 1079 | -10/Exiles | Found Prototype Device 1089 | -10/Exiles | Identified Supersonic Drone Bay 1093 | -10/Exiles | Found Latent Energy Streamer 1133 | -10/Exiles | Warned to stay clear of 0b10 Research branches 1292 | -10/Exiles | Left Exiles lab with Latent Energy Streamer 1292 | -10/Exiles | Entered Mines 1429 | -9/Mines | Found a damaged Exp. Sensor Array with a note attached 1433 | -9/Mines | Found Prototype Device 1557 | -9/Mines | Assembled infested the area 1588 | -9/Mines | Core integrity fell below 50% 1628 | -9/Mines | Discovered new exit (range 7) 1644 | -9/Mines | Entered Materials 1644 | -8/Materials | Evolved 4 slots: Power x1, Utility x2, Weapon x1 1647 | -8/Materials | Identified Exp. Sensor Array 1702 | -8/Materials | Repaired Aluminum Leg 1896 | -8/Materials | Repaired Carbon-fiber Leg 1933 | -8/Materials | Repaired Rocket Launcher 2197 | -8/Materials | Build established: Scavenger-Skirmisher 2208 | -8/Materials | Identified exit to Garrison 2352 | -8/Materials | Entered Garrison 2518 | -8/Garrison | Triggered checkpoint 2620 | -8/Garrison | Discovered new exit (range 13) 2729 | -8/Garrison | Entered Factory 2729 | -7/Factory | Evolved 2 slots: Power x1, Propulsion x1 2873 | -7/Factory | Identified exit to DSF 2874 | -7/Factory | Entered DSF 2955 | -7/DSF | Discovered new exit (range 12) 2970 | -7/DSF | Additional patrols routed to DSF 2980 | -7/DSF | Entered Factory 2980 | -6/Factory | Evolved 2 slots: Utility x2 3432 | -6/Factory | System corruption reached 10% 3462 | -6/Factory | Lost 5 parts (1p1n3u) 3527 | -6/Factory | Discovered new exit (range 6) 3532 | -6/Factory | Identified exit to Extension 3534 | -6/Factory | Entered Extension 3729 | -6/Extension | Build established: Skirmisher 3738 | -6/Extension | Disrupted transfer network 3862 | -6/Extension | Self-destructed Last Messages --------------- Triggered Alarm Trap. An alarm sounds. ALERT: Alarm triggered, dispatching investigation squad. PW,FUZNQQ&1FFE26